bitfinex-derivatives/quotes_BTCF0:USTF0_20241013
["timestamp","ask_amount","ask_price","bid_price","bid_amount"]
[1728805227738,0.0024,62822.0,62821.0,0.54235489]
[1728805227940,0.0024,62822.0,62821.0,0.54733314]
[1728805228648,0.0024,62822.0,62821.0,0.54932126]
[1728805229337,0.0024,62822.0,62821.0,0.18852126]
[1728805229541,0.0024,62822.0,62821.0,0.54932126]
[1728805230248,0.0024,62822.0,62821.0,0.18852126]
[1728805230448,0.0024,62822.0,62821.0,0.54932126]
[1728805232645,0.0024,62822.0,62821.0,0.45533457]
[1728805233347,0.0024,62822.0,62821.0,0.09453457]
[1728805233544,0.0024,62822.0,62821.0,0.45533457]
[1728805234049,0.0024,62822.0,62821.0,0.62897568]
[1728805234544,0.0024,62822.0,62821.0,0.62897654]
[1728805234845,0.0024,62822.0,62821.0,0.54933739]
[1728805235149,0.0024,62822.0,62821.0,0.18853771]
[1728805235349,0.0024,62822.0,62821.0,0.54933771]
[1728805237043,0.0024,62822.0,62821.0,0.62897905]
[1728805238644,0.0024,62822.0,62821.0,0.61404716]
[1728805238838,0.0024,62822.0,62821.0,0.62897911]
[1728805239039,0.0024,62822.0,62821.0,0.54933777]
[1728805239553,0.0024,62822.0,62821.0,0.53440582]
[1728805239752,0.0024,62822.0,62821.0,0.5493378]
[1728805242454,0.0024,62822.0,62821.0,0.53440582]
[1728805242643,0.0024,62822.0,62821.0,0.54933783]
[1728805242843,0.0024,62822.0,62821.0,0.18853783]
[1728805243039,0.0024,62822.0,62821.0,0.54933783]
[1728805245554,0.0024,62822.0,62821.0,0.18853783]
[1728805245851,0.0024,62822.0,62821.0,0.54933783]
[1728805246248,0.0024,62822.0,62821.0,0.54933785]
[1728805250073,0.0024,62822.0,62821.0,0.54933789]
[1728805251358,0.0024,62822.0,62821.0,0.5493437]
[1728805253161,0.0024,62822.0,62821.0,0.1885437]
[1728805253350,0.0024,62822.0,62821.0,0.5493437]
[1728805253751,0.0024,62822.0,62821.0,0.54136419]
[1728805254050,0.0024,62822.0,62821.0,0.62897363]
[1728805256155,0.0024,62822.0,62821.0,0.5493304]
[1728805256354,0.0024,62822.0,62821.0,0.1885304]
[1728805256551,0.0024,62822.0,62821.0,0.62897727]
[1728805258259,0.0024,62822.0,62821.0,0.5493304]
[1728805259959,0.0024,62822.0,62821.0,0.1885304]
[1728805260165,0.0024,62822.0,62821.0,0.5493304]
[1728805260555,0.0024,62822.0,62821.0,0.54933514]
[1728805260756,0.0024,62822.0,62821.0,0.53441735]
[1728805260961,0.0024,62822.0,62821.0,0.54933524]
[1728805262854,0.0024,62822.0,62821.0,0.18853524]
[1728805263066,0.0024,62822.0,62821.0,0.54933524]
[1728805264264,0.0024,62822.0,62821.0,0.54932919]
[1728805264464,0.0024,62822.0,62821.0,0.18852919]
[1728805265169,0.0024,62822.0,62821.0,0.54932919]
[1728805265670,0.0024,62822.0,62821.0,0.18852919]
[1728805265870,0.0024,62822.0,62821.0,0.54932919]
[1728805268971,0.0024,62822.0,62821.0,0.18852919]
[1728805269168,0.0024,62822.0,62821.0,0.54932919]
[1728805270876,0.0024,62822.0,62821.0,0.54930377]
[1728805271080,0.1124,62822.0,62821.0,0.53640287]
[1728805271283,0.1124,62822.0,62821.0,0.53445393]
[1728805273177,0.1124,62822.0,62821.0,0.3608]
[1728805276081,0.1124,62822.0,62819.0,0.02428235]
[1728805276381,0.0004,62820.0,62819.0,0.07964563]
[1728805276586,0.0004,62820.0,62819.0,0.17364106]
[1728805277574,0.0004,62820.0,62819.0,0.17564106]
[1728805277971,0.0004,62820.0,62819.0,0.08164563]
[1728805278184,0.0004,62820.0,62819.0,0.002]
[1728805279479,0.0004,62820.0,62819.0,0.02644683]
[1728805279679,1.07796,62820.0,62816.0,0.08159401]
[1728805279888,1.07796,62820.0,62819.0,0.06368436]
[1728805279889,0.0004,62820.0,62819.0,0.06368436]
[1728805280179,0.0004,62820.0,62818.0,0.06368436]
[1728805280385,0.0004,62819.0,62818.0,0.06368436]
[1728805280782,0.47796,62819.0,62818.0,0.06368436]
[1728805280981,0.47796,62819.0,62817.0,0.06368436]
[1728805281183,0.1104,62818.0,62816.0,0.06768436]
[1728805281384,0.0004,62817.0,62816.0,0.06768436]
[1728805281583,0.0335,62817.0,62816.0,0.06768436]
[1728805281783,0.0335,62817.0,62816.0,0.004]
[1728805281991,0.0335,62817.0,62815.0,0.06368436]
[1728805282291,0.031,62816.0,62815.0,0.06368436]
[1728805282591,0.031,62816.0,62814.0,0.04773722]
[1728805282592,0.220609,62816.0,62814.0,0.04773722]
[1728805282890,0.1104,62815.0,62814.0,0.04773722]
[1728805283088,0.1104,62815.0,62813.0,0.04773722]
[1728805283286,0.1104,62814.0,62812.0,0.04773722]
[1728805283488,0.1104,62813.0,62812.0,0.04773722]
[1728805284291,0.1104,62813.0,62811.0,0.04773722]
[1728805284481,0.1104,62812.0,62811.0,0.04773722]
[1728805285389,0.1104,62812.0,62807.0,0.4661039]
[1728805285390,0.1104,62812.0,62810.0,0.04773722]
[1728805285587,0.1104,62811.0,62810.0,0.04773722]
[1728805287194,0.1124,62811.0,62810.0,0.06573722]
[1728805287399,0.1124,62811.0,62810.0,0.018]
[1728805289107,0.1124,62811.0,62810.0,0.06573722]
[1728805290495,0.1124,62811.0,62810.0,0.018]
[1728805292899,0.4732,62811.0,62810.0,0.018]
[1728805296602,0.4732,62811.0,62803.0,0.079625]
[1728805296603,0.07962,62808.0,62803.0,0.079625]
[1728805296789,0.11,62806.0,62803.0,0.079625]
[1728805296994,0.0004,62804.0,62803.0,0.079625]
[1728805297692,0.0004,62804.0,62801.0,0.38576796]
[1728805297895,0.1104,62802.0,62801.0,0.38576796]
[1728805298098,0.1104,62802.0,62801.0,0.3608]
[1728805299405,0.1104,62802.0,62800.0,0.02458189]
[1728805299599,0.1114,62802.0,62801.0,0.3628]
[1728805300108,0.1124,62802.0,62801.0,0.3628]
[1728805300304,0.1124,62802.0,62801.0,0.38726002]
[1728805300606,0.1124,62802.0,62801.0,0.38526002]
[1728805301902,0.1124,62802.0,62801.0,0.3608]
[1728805302100,0.1124,62802.0,62801.0,0.3628]
[1728805302500,0.2224,62802.0,62801.0,0.3628]
[1728805305603,0.1124,62802.0,62801.0,0.3628]
[1728805305801,0.1124,62802.0,62801.0,0.002]
[1728805306002,0.1124,62802.0,62801.0,0.3628]
[1728805306404,0.2224,62802.0,62801.0,0.3628]
[1728805308516,0.1124,62802.0,62801.0,0.3628]
[1728805311119,0.1124,62802.0,62801.0,0.4104703]
[1728805313612,0.2224,62802.0,62801.0,0.4104703]
[1728805314211,0.2224,62802.0,62801.0,0.3628]
[1728805316119,0.2224,62802.0,62801.0,0.002]
[1728805316316,0.2224,62802.0,62801.0,0.3628]
[1728805316520,0.2224,62802.0,62801.0,0.002]
[1728805316722,0.2224,62802.0,62801.0,0.3628]
[1728805317532,0.1124,62802.0,62801.0,0.3628]
[1728805321738,0.2224,62802.0,62801.0,0.3628]
[1728805323336,0.1124,62802.0,62801.0,0.3628]
[1728805325940,0.1124,62802.0,62801.0,0.002]
[1728805327642,0.1124,62802.0,62801.0,0.003]
[1728805352061,0.2224,62802.0,62801.0,0.003]
[1728805364566,0.1124,62802.0,62801.0,0.003]
[1728805365371,0.1124,62802.0,62801.0,0.06673695]
[1728805365679,0.2224,62802.0,62801.0,0.06673695]
[1728805365868,0.2224,62802.0,62801.0,0.003]
[1728805367567,0.1124,62802.0,62801.0,0.003]
[1728805367881,0.2224,62802.0,62801.0,0.003]
[1728805373479,0.1124,62802.0,62801.0,0.003]
[1728805373979,0.2224,62802.0,62801.0,0.003]
[1728805374473,0.2224,62802.0,62801.0,0.06672686]
[1728805375281,0.2224,62802.0,62801.0,0.003]
[1728805375580,0.2224,62802.0,62801.0,0.06672664]
[1728805376975,0.2224,62802.0,62801.0,0.003]
[1728805380176,0.2224,62802.0,62801.0,0.06672804]
[1728805381286,0.2224,62802.0,62801.0,0.003]
[1728805386697,0.1124,62802.0,62801.0,0.003]
[1728805391403,0.0024,62802.0,62801.0,0.003]
[1728805391606,0.1124,62802.0,62801.0,0.003]
[1728805397704,0.1124,62802.0,62801.0,0.06673836]
[1728805401620,0.1124,62802.0,62801.0,0.003]
[1728805403918,0.1124,62802.0,62801.0,0.06673686]
[1728805404514,0.1124,62802.0,62801.0,0.003]
[1728805416926,0.1124,62802.0,62801.0,0.06673918]
[1728805418131,0.1124,62802.0,62801.0,0.003]
[1728805435444,0.1124,62802.0,62801.0,0.0667444]
[1728805442246,0.1124,62802.0,62801.0,0.003]
[1728805449258,0.1124,62802.0,62801.0,0.06673872]
[1728805457152,0.1124,62802.0,62801.0,0.003]
[1728805463561,0.0024,62802.0,62801.0,0.003]
[1728805463757,0.1124,62802.0,62801.0,0.003]
[1728805467962,0.1124,62802.0,62801.0,0.06673217]
[1728805470162,0.1124,62802.0,62801.0,0.003]
[1728805470363,0.1124,62802.0,62801.0,0.06673071]
[1728805471371,0.1124,62802.0,62801.0,0.003]
[1728805474567,0.0024,62802.0,62801.0,0.003]
[1728805474768,0.1124,62802.0,62801.0,0.003]
[1728805493879,0.1124,62802.0,62801.0,0.0667379]
[1728805494580,0.1124,62802.0,62801.0,0.003]
[1728805524502,0.1124,62802.0,62801.0,0.06674081]
[1728805530305,0.2224,62802.0,62801.0,0.06674081]
[1728805530704,0.2224,62802.0,62801.0,0.003]
[1728805532607,0.2224,62802.0,62801.0,0.06674131]
[1728805539507,0.2224,62802.0,62801.0,0.003]
[1728805542725,0.1124,62802.0,62801.0,0.003]
[1728805546030,0.2224,62802.0,62801.0,0.003]
[1728805546621,0.2224,62802.0,62801.0,0.06674131]
[1728805554631,0.2224,62802.0,62801.0,0.003]
[1728805561440,0.2224,62802.0,62797.0,1e-08]
[1728805561743,0.11,62798.0,62795.0,0.3608]
[1728805561933,0.1104,62798.0,62795.0,0.3608]
[1728805562137,0.0004,62796.0,62795.0,0.3608]
[1728805563040,0.0004,62796.0,62795.0,0.3618]
[1728805563546,0.0014,62796.0,62795.0,0.003]
[1728805563843,0.0024,62796.0,62795.0,0.003]
[1728805566042,0.1124,62796.0,62795.0,0.003]
[1728805566836,0.0024,62796.0,62795.0,0.003]
[1728805567044,0.1124,62796.0,62795.0,0.003]
[1728805572741,0.1124,62796.0,62794.0,0.079636]
[1728805572742,0.1114,62796.0,62794.0,0.079636]
[1728805573044,0.0004,62795.0,62794.0,0.079636]
[1728805576147,0.0024,62795.0,62794.0,0.079636]
[1728805590945,0.0024,62795.0,62793.0,0.02461418]
[1728805590946,0.1124,62795.0,62793.0,0.02461418]
[1728805591146,0.0004,62794.0,62791.0,0.44046146]
[1728805591366,0.1104,62792.0,62791.0,0.46588692]
[1728805591554,0.1104,62792.0,62791.0,0.56067367]
[1728805591751,0.1104,62792.0,62791.0,0.38622546]
[1728805593055,0.1114,62792.0,62791.0,0.38622546]
[1728805593961,0.1114,62792.0,62791.0,0.02542546]
[1728805594161,0.0014,62792.0,62791.0,0.02542546]
[1728805594366,0.0014,62792.0,62790.0,0.15930246]
[1728805594553,0.0004,62791.0,62790.0,0.15930246]
[1728805594754,0.0004,62791.0,62790.0,0.25432703]
[1728805596262,0.0014,62791.0,62790.0,0.25432703]
[1728805597371,0.0024,62791.0,62790.0,0.15930246]
[1728805599069,0.0024,62791.0,62790.0,0.1836922]
[1728805599768,0.0024,62791.0,62790.0,0.19904691]
[1728805599965,0.0024,62791.0,62790.0,0.27871073]
[1728805601770,0.0024,62791.0,62790.0,0.18369456]
[1728805604763,0.0024,62791.0,62790.0,0.27870282]
[1728805605059,0.0024,62791.0,62790.0,0.199039]
[1728805605463,0.1124,62791.0,62790.0,0.199039]
[1728805607564,0.0024,62791.0,62790.0,0.199039]
[1728805609574,0.1124,62791.0,62790.0,0.199039]
[1728805611370,0.0024,62791.0,62790.0,0.199039]
[1728805614077,0.0024,62791.0,62790.0,0.2787048]
[1728805614873,0.0024,62791.0,62790.0,0.10403074]
[1728805616777,0.0024,62791.0,62790.0,0.18369654]
[1728805618380,0.0024,62791.0,62790.0,0.27858921]
[1728805618775,0.0024,62791.0,62790.0,0.18369654]
[1728805618989,0.0024,62791.0,62790.0,0.27854771]
[1728805619381,0.0024,62791.0,62790.0,0.10403074]
[1728805619579,0.0024,62791.0,62790.0,0.18369654]
[1728805620086,0.0024,62791.0,62790.0,0.10403074]
[1728805621772,0.0024,62791.0,62790.0,0.27863143]
[1728805623287,0.0024,62791.0,62790.0,0.19896563]
[1728805624686,0.0024,62791.0,62790.0,0.2786474]
[1728805625387,0.0024,62791.0,62790.0,0.18371251]
[1728805626487,0.0024,62791.0,62790.0,0.27865798]
[1728805627181,0.0024,62791.0,62790.0,0.18371251]
[1728805627580,0.0024,62791.0,62790.0,0.27865553]
[1728805629889,0.0024,62791.0,62790.0,0.18371251]
[1728805637001,0.0024,62791.0,62790.0,0.19892275]
[1728805637303,0.0024,62791.0,62790.0,0.27859969]
[1728805640803,0.1124,62791.0,62790.0,0.27859969]
[1728805644515,0.1124,62791.0,62790.0,0.27860368]
[1728805644815,0.1124,62791.0,62790.0,0.18371167]
[1728805645218,0.1124,62791.0,62790.0,0.10403074]
[1728805647007,0.2224,62791.0,62790.0,0.10403074]
[1728805647311,0.2224,62791.0,62790.0,0.18371167]
[1728805647609,0.2224,62791.0,62790.0,0.10403074]
[1728805648711,0.1124,62791.0,62790.0,0.10403074]
[1728805650713,0.2224,62791.0,62790.0,0.10403074]
[1728805651911,0.2224,62791.0,62790.0,0.27860775]
[1728805652510,0.2224,62791.0,62790.0,0.02438974]
[1728805652704,0.2224,62791.0,62788.0,0.0796848]
[1728805652912,0.2224,62791.0,62790.0,0.0637527]
[1728805653410,0.2224,62791.0,62789.0,0.0637527]
[1728805653606,0.2204,62790.0,62789.0,0.0637527]
[1728805655021,0.2214,62790.0,62789.0,0.0637527]
[1728805655409,0.2214,62790.0,62788.0,0.0637527]
[1728805655610,0.2204,62789.0,62788.0,0.0637527]
[1728805657307,0.2214,62789.0,62788.0,0.0637527]
[1728805657508,0.2224,62789.0,62788.0,0.0637527]
[1728805666934,0.2224,62789.0,62787.0,0.1433977]
[1728805667231,0.2224,62789.0,62787.0,0.079645]
[1728805667433,0.0004,62788.0,62787.0,0.079645]
[1728805669239,0.0004,62788.0,62787.0,0.1433977]
[1728805669940,0.0024,62788.0,62787.0,0.1433977]
[1728805670239,0.0024,62788.0,62786.0,0.0637527]
[1728805670444,0.1104,62787.0,62785.0,0.0637527]
[1728805670745,0.0004,62786.0,62785.0,0.0637527]
[1728805673142,0.0014,62786.0,62785.0,0.0637527]
[1728805673339,0.0024,62786.0,62785.0,0.0637527]
[1728805674039,0.0024,62786.0,62784.0,0.0637527]
[1728805674243,0.1104,62785.0,62784.0,0.0637527]
[1728805675131,0.1104,62785.0,62782.0,0.10433249]
[1728805675331,0.0004,62783.0,62782.0,0.10433249]
[1728805676528,0.0014,62783.0,62782.0,0.02468149]
[1728805676734,0.0014,62783.0,62779.0,0.0800848]
[1728805676940,0.0004,62780.0,62779.0,0.0800848]
[1728805677142,0.0004,62780.0,62779.0,0.0004]
[1728805678345,0.0014,62780.0,62779.0,0.0004]
[1728805678847,0.0014,62780.0,62779.0,0.01335257]
[1728805679145,0.0024,62780.0,62779.0,0.0004]
[1728805680543,0.1124,62780.0,62779.0,0.0004]
[1728805681246,0.0024,62780.0,62779.0,0.0004]
[1728805682050,0.1124,62780.0,62779.0,0.04815872]
[1728805682344,0.1124,62780.0,62779.0,0.04816289]
[1728805684542,0.1124,62780.0,62779.0,0.0004]
[1728805698544,0.1124,62780.0,62779.0,0.04816289]
[1728805699352,0.1124,62780.0,62779.0,0.04814239]
[1728805699550,0.1124,62780.0,62779.0,0.04814414]
[1728805699758,0.1124,62780.0,62779.0,0.0004]
[1728805707459,0.1124,62780.0,62779.0,0.06408595]
[1728805710463,0.0024,62780.0,62779.0,0.06408595]
[1728805710767,0.1124,62780.0,62779.0,0.0004]
[1728805711475,0.1124,62780.0,62779.0,0.06408595]
[1728805711773,0.1124,62780.0,62779.0,0.0004]
[1728805737497,0.1124,62780.0,62779.0,0.06416545]
[1728805738588,0.1124,62780.0,62779.0,0.06416575]
[1728805742507,0.1124,62780.0,62779.0,0.0004]
[1728805746500,0.0004,62783.0,62779.0,0.0004]
[1728805746700,0.0004,62783.0,62780.0,0.06376389]
[1728805747706,0.0014,62783.0,62780.0,0.06376389]
[1728805748009,0.0024,62783.0,62780.0,0.06376389]
[1728805748600,0.0024,62783.0,62779.0,0.06456389]
[1728805748601,0.11,62781.0,62779.0,0.06456389]
[1728805748801,0.0004,62780.0,62779.0,0.06456389]
[1728805749200,0.0004,62780.0,62779.0,0.06456476]
[1728805749407,0.0004,62780.0,62779.0,0.06456405]
[1728805750113,0.0014,62780.0,62779.0,0.06656405]
[1728805750309,0.0024,62780.0,62779.0,0.06856405]
[1728805754507,0.1124,62780.0,62779.0,0.06856405]
[1728805755406,0.1124,62780.0,62779.0,0.06856129]
[1728805755605,0.1124,62780.0,62779.0,0.0048]
[1728805755807,0.1124,62780.0,62779.0,0.06856115]
[1728805757408,0.1124,62780.0,62779.0,0.0048]
[1728805761537,0.1124,62780.0,62779.0,0.06856115]
[1728805764426,0.1124,62780.0,62779.0,0.0048]
[1728805768316,0.1124,62780.0,62779.0,0.06856004]
[1728805768920,0.1124,62780.0,62779.0,0.06856026]
[1728805769126,0.1124,62780.0,62779.0,0.0048]
[1728805769421,0.1124,62780.0,62779.0,0.06856026]
[1728805769923,0.1124,62780.0,62779.0,0.0048]
[1728805770221,0.1124,62780.0,62779.0,0.06856026]
[1728805770420,0.1124,62780.0,62779.0,0.0048]
[1728805781317,0.1124,62780.0,62779.0,0.06856026]
[1728805783620,0.1124,62780.0,62779.0,0.0048]
[1728805784121,0.1441,62780.0,62779.0,0.05261936]
[1728805784322,0.1441,62780.0,62779.0,0.0048]
[1728805784725,0.1441,62780.0,62779.0,0.05261709]
[1728805786230,0.5049,62780.0,62779.0,0.05261709]
[1728805786427,0.5049,62780.0,62779.0,0.0048]
[1728805787221,0.1441,62780.0,62779.0,0.0048]
[1728805787427,0.5049,62780.0,62779.0,0.0048]
[1728805790235,0.1441,62780.0,62779.0,0.0048]
[1728805790430,0.5049,62780.0,62779.0,0.0048]
[1728805791034,0.5049,62780.0,62779.0,0.05261709]
[1728805793533,0.1441,62780.0,62779.0,0.05261709]
[1728805793743,0.5049,62780.0,62779.0,0.05261709]
[1728805794639,0.5049,62780.0,62779.0,0.0048]
[1728805794845,0.5049,62780.0,62779.0,0.05259944]
[1728805795532,0.5049,62780.0,62779.0,0.0048]
[1728805795731,0.5049,62780.0,62779.0,0.05260008]
[1728805796238,0.1441,62780.0,62779.0,0.05260008]
[1728805796441,0.5049,62780.0,62779.0,0.0048]
[1728805796634,0.5049,62780.0,62779.0,0.05260095]
[1728805796834,0.5049,62780.0,62779.0,0.0048]
[1728805801844,0.5049,62780.0,62779.0,0.02994508]
[1728805805733,0.1441,62780.0,62779.0,0.02994508]
[1728805805935,0.5049,62780.0,62779.0,0.02994508]
[1728805807244,0.6149,62780.0,62779.0,0.02994508]
[1728805807444,0.5049,62780.0,62779.0,0.02994508]
[1728805809351,0.3949,62780.0,62779.0,0.02994508]
[1728805809645,0.5049,62780.0,62779.0,0.02994508]
[1728805809948,0.1441,62780.0,62779.0,0.02994508]
[1728805810148,0.5049,62780.0,62779.0,0.02994508]
[1728805813343,0.5049,62780.0,62779.0,0.07774603]
[1728805816547,0.5049,62780.0,62779.0,0.05260095]
[1728805817843,0.1441,62780.0,62779.0,0.05260095]
[1728805818045,0.5049,62780.0,62779.0,0.05260095]
[1728805818546,0.1441,62780.0,62779.0,0.05260095]
[1728805818852,0.5049,62780.0,62779.0,0.05260095]
[1728805819058,0.1441,62780.0,62779.0,0.05260095]
[1728805819651,0.5049,62780.0,62779.0,0.05260095]
[1728805820050,0.1441,62780.0,62779.0,0.05260095]
[1728805820637,0.5049,62780.0,62779.0,0.05260095]
[1728805824445,0.5049,62780.0,62779.0,0.0048]
[1728805824747,0.5049,62780.0,62779.0,0.05263037]
[1728805825537,0.1441,62780.0,62779.0,0.05263037]
[1728805825749,0.5049,62780.0,62779.0,0.0048]
[1728805829072,0.5049,62780.0,62779.0,0.05263037]
[1728805829444,0.5049,62780.0,62779.0,0.0048]
[1728805829644,0.1441,62780.0,62779.0,0.0048]
[1728805829852,0.5049,62780.0,62779.0,0.0048]
[1728805830053,0.1441,62780.0,62779.0,0.0048]
[1728805830259,0.5049,62780.0,62779.0,0.0048]
[1728805830747,0.1441,62780.0,62779.0,0.0048]
[1728805831152,0.5049,62780.0,62779.0,0.0048]
[1728805832050,0.1441,62780.0,62779.0,0.0048]
[1728805832245,0.5049,62780.0,62779.0,0.0048]
[1728805832446,0.3632,62780.0,62779.0,0.05263037]
[1728805832753,0.3632,62780.0,62779.0,0.0377]
[1728805836156,0.0024,62780.0,62779.0,0.0377]
[1728805841962,0.1124,62780.0,62779.0,0.0048]
[1728805842259,0.1452,62780.0,62779.0,0.0048]
[1728805842656,0.1452,62780.0,62779.0,0.05260843]
[1728805843363,0.1452,62780.0,62779.0,0.0048]
[1728805844554,0.0352,62780.0,62779.0,0.0048]
[1728805846763,0.1452,62780.0,62779.0,0.0048]
[1728805847555,0.0352,62780.0,62779.0,0.0048]
[1728805847854,0.0352,62780.0,62779.0,0.05260777]
[1728805849459,0.1452,62780.0,62779.0,0.05260777]
[1728805849662,0.1452,62780.0,62779.0,0.0048]
[1728805850553,0.0352,62780.0,62779.0,0.0048]
[1728805850956,0.0352,62780.0,62779.0,0.05260777]
[1728805851154,0.0352,62780.0,62779.0,0.0048]
[1728805851353,0.0352,62780.0,62779.0,0.05260777]
[1728805851553,0.0352,62780.0,62779.0,0.0048]
[1728805851750,0.0352,62780.0,62779.0,0.05260777]
[1728805851952,0.0352,62780.0,62779.0,0.0048]
[1728805852354,0.0352,62780.0,62779.0,0.05260777]
[1728805854062,0.0024,62780.0,62779.0,0.05260777]
[1728805854869,0.0024,62780.0,62779.0,0.0048]
[1728805855262,0.0024,62780.0,62779.0,0.05261047]
[1728805856268,0.0024,62780.0,62779.0,0.0048]
[1728805862868,0.0024,62780.0,62779.0,0.0526149]
[1728805864768,0.0024,62780.0,62779.0,0.0048]
[1728805867263,0.0024,62780.0,62779.0,0.0526149]
[1728805867467,0.1124,62780.0,62778.0,0.04781817]
[1728805867768,0.1124,62780.0,62774.0,0.06376026]
[1728805867769,0.07966,62776.0,62774.0,0.06376026]
[1728805867970,0.11,62775.0,62774.0,0.06376026]
[1728805868269,0.1104,62775.0,62774.0,0.06376026]
[1728805868568,0.190061,62775.0,62773.0,0.0328]
[1728805868776,0.0004,62774.0,62773.0,0.0328]
[1728805869977,0.0014,62774.0,62773.0,0.0338]
[1728805871077,0.0024,62774.0,62773.0,0.0338]
[1728805871681,0.0024,62774.0,62773.0,0.05898149]
[1728805873863,0.0024,62774.0,62773.0,0.0338]
[1728805878472,0.0024,62774.0,62773.0,0.001]
[1728805882679,0.2224,62774.0,62773.0,0.001]
[1728805900093,0.2224,62774.0,62772.0,0.0004]
[1728805900094,0.3324,62774.0,62772.0,0.0004]
[1728805900298,0.0654,62773.0,62772.0,1e-08]
[1728805900598,0.0654,62773.0,62760.0,0.07968]
[1728805900599,0.079674,62765.0,62761.0,0.09563909]
[1728805900797,0.079674,62765.0,62760.0,0.07968]
[1728805900798,0.2204,62762.0,62760.0,0.07968]
[1728805900996,0.1104,62762.0,62761.0,0.09322137]
[1728805901199,0.1104,62762.0,62761.0,0.032]
[1728805902599,0.1114,62762.0,62761.0,0.032]
[1728805902785,0.1124,62762.0,62761.0,0.032]
[1728805906093,0.2224,62762.0,62761.0,0.032]
[1728805907501,0.1124,62762.0,62761.0,0.032]
[1728805909505,0.2224,62762.0,62761.0,0.032]
[1728805911618,0.1124,62762.0,62761.0,0.032]
[1728805914404,0.2224,62762.0,62761.0,0.032]
[1728805917411,0.1124,62762.0,62761.0,0.032]
[1728805922011,0.2224,62762.0,62761.0,0.032]
[1728805922613,0.1124,62762.0,62761.0,0.032]
[1728805923310,0.0024,62762.0,62761.0,0.032]
[1728805923616,0.0024,62762.0,62761.0,0.03698319]
[1728805924106,0.1124,62762.0,62761.0,0.03698319]
[1728805924517,0.1124,62762.0,62761.0,0.04495567]
[1728805924722,0.0024,62762.0,62761.0,1.20806382]
[1728805925508,0.0024,62762.0,62761.0,1.2110529]
[1728805925720,0.0024,62762.0,62761.0,1.22400784]
[1728805926416,0.0024,62762.0,62761.0,1.22403228]
[1728805927819,0.0024,62762.0,62761.0,0.62403228]
[1728805928917,0.0024,62762.0,62761.0,0.14603228]
[1728805930208,0.0024,62762.0,62761.0,1.22403228]
[1728805932119,0.0024,62762.0,62761.0,1.58483228]
[1728805933306,0.0024,62762.0,62761.0,1.57686001]
[1728805935221,0.0024,62762.0,62761.0,1.21606001]
[1728805935418,0.0024,62762.0,62761.0,1.57686001]
[1728805936320,0.0024,62762.0,62761.0,1.56390507]
[1728805936520,0.0024,62762.0,62761.0,1.57686001]
[1728805937720,0.0323,62773.0,62771.0,0.079666]
[1728805938021,0.11,62772.0,62771.0,0.079666]
[1728805938212,0.0323,62773.0,62771.0,0.079666]
[1728805938411,0.11,62772.0,62771.0,0.079666]
[1728805939216,0.111,62772.0,62771.0,0.079666]
[1728805940924,0.112,62772.0,62771.0,0.079666]
[1728805941126,0.112,62772.0,62771.0,0.10397506]
[1728805943617,0.002,62772.0,62771.0,0.10397506]
[1728805947933,0.002,62772.0,62771.0,0.22692901]
[1728805948634,0.002,62772.0,62771.0,0.11692901]
[1728805950935,0.0004,62780.0,62772.0,0.47792]
[1728805951120,0.0004,62780.0,62778.0,0.079657]
[1728805953027,0.0004,62780.0,62778.0,0.080657]
[1728805956725,0.1104,62779.0,62778.0,0.080657]
[1728805959439,0.1104,62779.0,62778.0,0.10615594]
[1728805962128,0.0004,62779.0,62778.0,0.10615594]
[1728805962324,0.0004,62780.0,62778.0,0.11910899]
[1728805962530,0.0004,62780.0,62779.0,0.01295305]
[1728805962731,0.1104,62780.0,62779.0,0.01295305]
[1728805963743,0.1104,62780.0,62779.0,0.07658357]
[1728805965340,0.1104,62780.0,62779.0,0.07758357]
[1728805965537,0.1104,62780.0,62779.0,0.07758279]
[1728805967235,0.1104,62780.0,62779.0,0.01395227]
[1728805968544,0.1104,62780.0,62779.0,0.37475227]
[1728805971444,0.1104,62780.0,62779.0,0.01395227]
[1728805971739,0.1104,62780.0,62779.0,0.37475227]
[1728805972346,0.1104,62780.0,62779.0,0.01395227]
[1728805972549,0.1104,62780.0,62779.0,0.37475227]
[1728805973238,0.1104,62780.0,62779.0,0.43838279]
[1728805974444,0.0004,62780.0,62779.0,0.37475227]
[1728805976546,0.0004,62780.0,62779.0,0.3618]
[1728805976743,0.0004,62780.0,62779.0,0.37475227]
[1728805977844,0.0004,62780.0,62779.0,0.01395227]
[1728805978050,0.0004,62780.0,62779.0,0.37475227]
[1728805979144,0.0004,62780.0,62779.0,0.01395227]
[1728805979341,0.0004,62780.0,62779.0,0.37475227]
[1728805980048,0.0004,62780.0,62779.0,0.01395227]
[1728805980353,0.0004,62780.0,62779.0,0.37475227]
[1728805982055,0.0004,62780.0,62779.0,0.01395227]
[1728805982454,0.0004,62780.0,62779.0,0.37475227]
[1728805982958,0.0004,62780.0,62779.0,0.01395227]
[1728805983548,0.0004,62780.0,62779.0,0.001]
[1728805983750,0.0004,62780.0,62779.0,0.3618]
[1728805984250,0.0004,62780.0,62779.0,0.36977064]
[1728805984660,0.0004,62780.0,62779.0,0.00897064]
[1728805984850,0.0004,62780.0,62779.0,0.37475229]
[1728805986154,0.0004,62780.0,62779.0,0.3618]
[1728805986453,0.0004,62780.0,62779.0,0.37475229]
[1728805988849,0.0004,62780.0,62779.0,0.37475227]
[1728805989353,0.0004,62780.0,62779.0,0.45430151]
[1728805989552,0.0004,62780.0,62779.0,0.54713535]
[1728805990355,0.0004,62780.0,62779.0,0.46758611]
[1728805990957,0.0004,62780.0,62779.0,0.10678611]
[1728805991360,0.0004,62780.0,62779.0,0.46758611]
[1728805991860,0.0004,62780.0,62779.0,0.10678611]
[1728805992061,0.0004,62780.0,62779.0,0.46758611]
[1728805992457,0.0004,62780.0,62779.0,0.45463384]